[Event "*** Titled Tuesday 3|2 Blitz"]
[Site "Chess.com"]
[Date "2016.09.06"]
[Round "6"]
[White "Alexander_Donchenko"]
[Black "Lapitch"]
[Result "0-1"]
[WhiteElo "2496"]
[BlackElo "2550"]
[TimeControl "180+2"]
[EndTime "12:11:11 PDT"]
[Termination "Lapitch won by resignation"]

1. c4 {[%clk 0:03:02]} 1... e5 {[%clk 0:02:54.2]} 2. g3 {[%clk 0:03:03]} 2...
Nf6 {[%clk 0:02:54.3]} 3. Bg2 {[%clk 0:03:04.4]} 3... c6 {[%clk 0:02:56]} 4. d4
{[%clk 0:03:05.3]} 4... e4 {[%clk 0:02:56.2]} 5. Nc3 {[%clk 0:03:06.1]} 5... d5
{[%clk 0:02:55.4]} 6. Bg5 {[%clk 0:03:06]} 6... Bb4 {[%clk 0:02:54.1]} 7. Rc1
{[%clk 0:03:03.5]} 7... Nbd7 {[%clk 0:02:54]} 8. cxd5 {[%clk 0:03:03.7]} 8...
cxd5 {[%clk 0:02:54.1]} 9. a3 {[%clk 0:03:03.8]} 9... Bxc3+ {[%clk 0:02:54.5]}
10. Rxc3 {[%clk 0:03:05.7]} 10... h6 {[%clk 0:02:55.6]} 11. Bf4 {[%clk
0:03:06.5]} 11... O-O {[%clk 0:02:54.4]} 12. Nh3 {[%clk 0:02:56.5]} 12... Nb8
{[%clk 0:02:53.5]} 13. Bxb8 {[%clk 0:02:42.3]} 13... Rxb8 {[%clk 0:02:50.8]} 14.
e3 {[%clk 0:02:41.6]} 14... Bg4 {[%clk 0:02:44.7]} 15. Qa4 {[%clk 0:02:39.4]}
15... b5 {[%clk 0:02:25.1]} 16. Qxa7 {[%clk 0:02:37.1]} 16... b4 {[%clk
0:02:26]} 17. axb4 {[%clk 0:02:36.2]} 17... Ra8 {[%clk 0:02:10.2]} 18. Qc7
{[%clk 0:02:34.3]} 18... Ra1+ {[%clk 0:02:06.7]} 19. Kd2 {[%clk 0:02:34.8]}
19... Rxh1 {[%clk 0:02:01.4]} 20. Bxh1 {[%clk 0:02:32.5]} 20... Bxh3 {[%clk
0:02:02.5]} 21. b5 {[%clk 0:02:31]} 21... Qxc7 {[%clk 0:02:00]} 22. Rxc7 {[%clk
0:02:32.1]} 22... Rb8 {[%clk 0:02:01.6]} 23. Rc5 {[%clk 0:02:31]} 23... Bf1
{[%clk 0:01:56.9]} 24. Kc3 {[%clk 0:02:30.4]} 24... Bxb5 {[%clk 0:01:49.6]} 25.
f3 {[%clk 0:02:29.7]} 25... Bd3 {[%clk 0:01:45.3]} 26. fxe4 {[%clk 0:02:27.8]}
26... Bxe4 {[%clk 0:01:45]} 0-1

[Event "*** Titled Tuesday 3|2 Blitz"]
[Site "Chess.com"]
[Date "2016.09.06"]
[Round "6"]
[White "Rating-Schmating"]
[Black "PowerThinking2650"]
[Result "1-0"]
[WhiteElo "2225"]
[BlackElo "2149"]
[TimeControl "180+2"]
[EndTime "12:11:44 PDT"]
[Termination "Rating-Schmating won by resignation"]

1. e4 {[%clk 0:03:01.9]} 1... e5 {[%clk 0:02:59.8]} 2. Nf3 {[%clk 0:03:02.8]}
2... Nc6 {[%clk 0:03:00.5]} 3. d4 {[%clk 0:03:03.6]} 3... exd4 {[%clk
0:03:00.8]} 4. Nxd4 {[%clk 0:03:04.7]} 4... Nf6 {[%clk 0:03:02.3]} 5. Nxc6
{[%clk 0:03:04.4]} 5... bxc6 {[%clk 0:03:03.6]} 6. e5 {[%clk 0:03:05.4]} 6...
Qe7 {[%clk 0:03:05]} 7. Qe2 {[%clk 0:03:05.8]} 7... Nd5 {[%clk 0:03:03.8]} 8. c4
{[%clk 0:03:06.2]} 8... Ba6 {[%clk 0:03:03.8]} 9. Nd2 {[%clk 0:03:05.5]} 9... g6
{[%clk 0:03:04.3]} 10. Nf3 {[%clk 0:03:03.3]} 10... Bg7 {[%clk 0:03:04.8]} 11.
Qe4 {[%clk 0:02:58.9]} 11... Nb6 {[%clk 0:02:49.4]} 12. b3 {[%clk 0:02:55.6]}
12... d5 {[%clk 0:02:43.6]} 13. cxd5 {[%clk 0:02:52.6]} 13... cxd5 {[%clk
0:02:41.9]} 14. Qd4 {[%clk 0:02:53.1]} 14... c5 {[%clk 0:02:36.3]} 15. Qf4
{[%clk 0:02:50]} 15... Bxf1 {[%clk 0:02:34.5]} 16. Kxf1 {[%clk 0:02:50.9]} 16...
O-O {[%clk 0:02:32]} 17. g3 {[%clk 0:02:47.3]} 17... f6 {[%clk 0:02:32.4]} 18.
e6 {[%clk 0:02:41.7]} 18... f5 {[%clk 0:02:22.3]} 19. Rb1 {[%clk 0:02:40.8]}
19... Qxe6 {[%clk 0:02:21.6]} 20. Kg2 {[%clk 0:02:40.8]} 20... Qe4 {[%clk
0:02:21.9]} 21. Be3 {[%clk 0:02:37.4]} 21... d4 {[%clk 0:02:19.6]} 22. Bd2
{[%clk 0:02:37]} 22... Nd5 {[%clk 0:02:20.2]} 23. Qd6 {[%clk 0:02:35.9]} 23...
Rfd8 {[%clk 0:02:04.6]} 24. Qxc5 {[%clk 0:02:34.4]} 24... Rac8 {[%clk
0:02:05.1]} 25. Qa5 {[%clk 0:02:34.7]} 25... Rc2 {[%clk 0:01:46.7]} 26. Rbe1
{[%clk 0:02:32.3]} 26... Ne3+ {[%clk 0:01:26.5]} 27. Rxe3 {[%clk 0:02:27]} 27...
dxe3 {[%clk 0:01:23.8]} 28. Qxd8+ {[%clk 0:02:27.8]} 1-0

[Event "*** Titled Tuesday 3|2 Blitz"]
[Site "Chess.com"]
[Date "2016.09.06"]
[Round "6"]
[White "Lali-Rustavi"]
[Black "MattyDPerrine"]
[Result "0-1"]
[WhiteElo "1818"]
[BlackElo "2202"]
[TimeControl "180+2"]
[EndTime "12:12:30 PDT"]
[Termination "MattyDPerrine won by resignation"]

1. c4 {[%clk 0:03:00.6]} 1... Nf6 {[%clk 0:02:59.5]} 2. Nc3 {[%clk 0:03:01]}
2... c5 {[%clk 0:02:59.5]} 3. g3 {[%clk 0:03:02.1]} 3... g6 {[%clk 0:02:57.2]}
4. Bg2 {[%clk 0:03:03.3]} 4... Bg7 {[%clk 0:02:58.9]} 5. e3 {[%clk 0:03:04.5]}
5... O-O {[%clk 0:02:58.6]} 6. Nge2 {[%clk 0:03:06.1]} 6... Nc6 {[%clk
0:02:54.3]} 7. O-O {[%clk 0:03:07.4]} 7... d6 {[%clk 0:02:52.4]} 8. a3 {[%clk
0:03:03.6]} 8... Bf5 {[%clk 0:02:48.7]} 9. d3 {[%clk 0:03:03]} 9... Ne5 {[%clk
0:02:44.4]} 10. e4 {[%clk 0:03:02.7]} 10... Bc8 {[%clk 0:02:39.9]} 11. f4 {[%clk
0:03:03.9]} 11... Nc6 {[%clk 0:02:41.5]} 12. h3 {[%clk 0:02:59.4]} 12... Ne8
{[%clk 0:02:41.7]} 13. f5 {[%clk 0:02:51.7]} 13... Nc7 {[%clk 0:02:41.4]} 14. g4
{[%clk 0:02:39.5]} 14... Rb8 {[%clk 0:02:30.2]} 15. Be3 {[%clk 0:02:26.8]} 15...
b5 {[%clk 0:02:25]} 16. Qd2 {[%clk 0:02:16.8]} 16... bxc4 {[%clk 0:02:19]} 17.
dxc4 {[%clk 0:02:16.7]} 17... Na5 {[%clk 0:02:19.4]} 18. Qd3 {[%clk 0:01:45.5]}
18... Ba6 {[%clk 0:02:20.2]} 19. f6 {[%clk 0:01:36]} 19... Bxf6 {[%clk
0:02:13.4]} 20. Rxf6 {[%clk 0:01:36.5]} 20... exf6 {[%clk 0:02:14.9]} 21. Nd5
{[%clk 0:01:32]} 21... Nxd5 {[%clk 0:02:15.7]} 22. exd5 {[%clk 0:01:32.4]} 22...
Bxc4 {[%clk 0:02:13.8]} 23. Qd2 {[%clk 0:01:32.8]} 23... Nb3 {[%clk 0:02:14.9]}
24. Qc2 {[%clk 0:01:30]} 24... Bxe2 {[%clk 0:02:08.9]} 25. Qxe2 {[%clk 0:01:29]}
25... Nxa1 {[%clk 0:02:09.9]} 26. Bh6 {[%clk 0:01:30.5]} 26... Re8 {[%clk
0:02:11.1]} 27. Qd3 {[%clk 0:01:25.2]} 27... Rxb2 {[%clk 0:02:06.6]} 28. h4
{[%clk 0:01:24.8]} 28... Re1+ {[%clk 0:01:59]} 29. Kh2 {[%clk 0:01:25.2]} 29...
Ree2 {[%clk 0:01:59.9]} 0-1

[Event "*** Titled Tuesday 3|2 Blitz"]
[Site "Chess.com"]
[Date "2016.09.06"]
[Round "6"]
[White "MateusViageiro"]
[Black "Haykos"]
[Result "1-0"]
[WhiteElo "2366"]
[BlackElo "2243"]
[TimeControl "180+2"]
[EndTime "12:12:37 PDT"]
[Termination "MateusViageiro won by resignation"]

1. e4 {[%clk 0:03:01.9]} 1... e5 {[%clk 0:02:59.6]} 2. Nf3 {[%clk 0:03:02.1]}
2... Nc6 {[%clk 0:03:00.7]} 3. Bb5 {[%clk 0:03:02.8]} 3... a6 {[%clk 0:03:01]}
4. Ba4 {[%clk 0:03:03.7]} 4... Nge7 {[%clk 0:02:48.3]} 5. O-O {[%clk 0:03:03.1]}
5... g6 {[%clk 0:02:48.3]} 6. c3 {[%clk 0:03:04]} 6... Bg7 {[%clk 0:02:47.3]} 7.
d4 {[%clk 0:03:04.8]} 7... exd4 {[%clk 0:02:47.1]} 8. cxd4 {[%clk 0:03:05.2]}
8... b5 {[%clk 0:02:48.6]} 9. Bc2 {[%clk 0:03:03.3]} 9... O-O {[%clk 0:02:28]}
10. Nc3 {[%clk 0:03:02.9]} 10... Bb7 {[%clk 0:02:21.5]} 11. d5 {[%clk
0:03:03.8]} 11... Na5 {[%clk 0:02:20]} 12. Bg5 {[%clk 0:03:01.5]} 12... h6
{[%clk 0:02:02.6]} 13. Bh4 {[%clk 0:03:00.4]} 13... g5 {[%clk 0:02:03.4]} 14.
Bg3 {[%clk 0:03:01.3]} 14... Ng6 {[%clk 0:02:03.4]} 15. e5 {[%clk 0:02:53.4]}
15... d6 {[%clk 0:01:43.2]} 16. e6 {[%clk 0:02:52.2]} 16... Qf6 {[%clk
0:01:07.5]} 17. Re1 {[%clk 0:02:46.8]} 17... Rae8 {[%clk 0:01:03.1]} 18. exf7+
{[%clk 0:02:37.7]} 18... Qxf7 {[%clk 0:01:02.8]} 19. Qd3 {[%clk 0:02:32.7]}
19... Kh7 {[%clk 0:00:55.9]} 20. Ne4 {[%clk 0:02:21.8]} 20... Bf6 {[%clk
0:00:40.9]} 21. h4 {[%clk 0:02:18.2]} 21... g4 {[%clk 0:00:41]} 22. h5 {[%clk
0:02:14.2]} 22... gxf3 {[%clk 0:00:38.5]} 23. hxg6+ {[%clk 0:02:15]} 1-0

[Event "*** Titled Tuesday 3|2 Blitz"]
[Site "Chess.com"]
[Date "2016.09.06"]
[Round "6"]
[White "macko06"]
[Black "Haridaskesavan"]
[Result "1-0"]
[WhiteElo "2187"]
[BlackElo "2197"]
[TimeControl "180+2"]
[EndTime "12:13:39 PDT"]
[Termination "macko06 won by resignation"]

1. d4 {[%clk 0:03:02]} 1... Nf6 {[%clk 0:02:58.8]} 2. Nf3 {[%clk 0:03:02.3]}
2... g6 {[%clk 0:02:59.6]} 3. c4 {[%clk 0:03:02.3]} 3... Bg7 {[%clk 0:03:00.6]}
4. Nc3 {[%clk 0:03:00.2]} 4... O-O {[%clk 0:03:01.5]} 5. g3 {[%clk 0:03:00.8]}
5... d6 {[%clk 0:03:02.6]} 6. Bg2 {[%clk 0:03:01.7]} 6... Nc6 {[%clk 0:03:03.8]}
7. O-O {[%clk 0:03:02.8]} 7... e5 {[%clk 0:03:04.4]} 8. dxe5 {[%clk 0:03:02]}
8... Nxe5 {[%clk 0:03:04.1]} 9. Nxe5 {[%clk 0:03:02.2]} 9... dxe5 {[%clk
0:03:05.3]} 10. Bg5 {[%clk 0:02:51.8]} 10... Qxd1 {[%clk 0:02:37.4]} 11. Rfxd1
{[%clk 0:02:34.6]} 11... c6 {[%clk 0:02:38.5]} 12. Rd6 {[%clk 0:01:58.6]} 12...
Nd7 {[%clk 0:02:22.4]} 13. Rad1 {[%clk 0:01:56]} 13... Nb6 {[%clk 0:02:23]} 14.
b3 {[%clk 0:01:53.8]} 14... f6 {[%clk 0:02:17.6]} 15. Be3 {[%clk 0:01:50.3]}
15... Re8 {[%clk 0:02:18.7]} 16. c5 {[%clk 0:01:48.4]} 16... Nd7 {[%clk
0:02:01.4]} 17. Rxd7 {[%clk 0:01:48.8]} 17... Bxd7 {[%clk 0:02:02.4]} 18. Rxd7
{[%clk 0:01:47.7]} 18... Rab8 {[%clk 0:02:00.4]} 19. Ne4 {[%clk 0:01:42.1]}
19... Red8 {[%clk 0:01:58]} 20. Rxd8+ {[%clk 0:01:37.4]} 20... Rxd8 {[%clk
0:01:58.4]} 21. Nd6 {[%clk 0:01:37.5]} 21... b6 {[%clk 0:01:54.4]} 22. Bxc6
{[%clk 0:01:29.5]} 22... bxc5 {[%clk 0:01:55.3]} 23. Bd5+ {[%clk 0:01:27.9]}
23... Kf8 {[%clk 0:01:51.1]} 24. Bxc5 {[%clk 0:01:28.3]} 24... Rb8 {[%clk
0:01:49.5]} 25. Bxa7 {[%clk 0:01:16.9]} 25... Rd8 {[%clk 0:01:43.5]} 26. Bc5
{[%clk 0:01:14.2]} 26... Rb8 {[%clk 0:01:43.5]} 27. a4 {[%clk 0:01:08.1]} 27...
Ke7 {[%clk 0:01:40.5]} 28. Nf5+ {[%clk 0:01:06.5]} 28... Kd7 {[%clk 0:01:35.5]}
29. Nxg7 {[%clk 0:01:06]} 29... Rc8 {[%clk 0:01:33]} 30. Be6+ {[%clk 0:01:04.6]}
1-0

[Event "*** Titled Tuesday 3|2 Blitz"]
[Site "Chess.com"]
[Date "2016.09.06"]
[Round "6"]
[White "IamSchrodingersCat"]
[Black "Wolverine_master"]
[Result "1-0"]
[WhiteElo "2281"]
[BlackElo "2048"]
[TimeControl "180+2"]
[EndTime "12:13:51 PDT"]
[Termination "IamSchrodingersCat won by resignation"]

1. e4 {[%clk 0:03:01.9]} 1... d5 {[%clk 0:03:00.7]} 2. exd5 {[%clk 0:03:02.3]}
2... Qxd5 {[%clk 0:03:02.6]} 3. Nc3 {[%clk 0:03:03.1]} 3... Qd6 {[%clk
0:03:03.5]} 4. Bc4 {[%clk 0:03:03.6]} 4... Nf6 {[%clk 0:03:03.1]} 5. d3 {[%clk
0:03:04]} 5... a6 {[%clk 0:03:04.2]} 6. Bb3 {[%clk 0:03:03.5]} 6... Nc6 {[%clk
0:03:02.1]} 7. Nge2 {[%clk 0:03:03.8]} 7... e5 {[%clk 0:03:01.7]} 8. Be3 {[%clk
0:03:01.9]} 8... Be7 {[%clk 0:02:47]} 9. h3 {[%clk 0:03:02.1]} 9... O-O {[%clk
0:02:46.9]} 10. O-O {[%clk 0:02:58.6]} 10... b5 {[%clk 0:02:47.5]} 11. Ng3
{[%clk 0:02:57.6]} 11... Bb7 {[%clk 0:02:44.1]} 12. Nce4 {[%clk 0:02:57]} 12...
Nxe4 {[%clk 0:02:44.8]} 13. Nxe4 {[%clk 0:02:58.9]} 13... Qg6 {[%clk 0:02:41.6]}
14. Qg4 {[%clk 0:02:56.3]} 14... Qxg4 {[%clk 0:02:22.1]} 15. hxg4 {[%clk
0:02:58.2]} 15... Nd4 {[%clk 0:02:03.4]} 16. f3 {[%clk 0:02:48]} 16... a5 {[%clk
0:01:44.2]} 17. c3 {[%clk 0:02:45.8]} 17... Nxb3 {[%clk 0:01:39.8]} 18. axb3
{[%clk 0:02:47.7]} 18... Bxe4 {[%clk 0:01:29.2]} 19. dxe4 {[%clk 0:02:44.7]}
19... Rfd8 {[%clk 0:01:28.1]} 20. Rfd1 {[%clk 0:02:45.3]} 20... Bd6 {[%clk
0:01:13]} 21. Kf1 {[%clk 0:02:44]} 21... Kf8 {[%clk 0:01:12]} 22. Ke2 {[%clk
0:02:43.4]} 22... Ke7 {[%clk 0:00:47]} 23. Rd5 {[%clk 0:02:35.7]} 23... c6
{[%clk 0:00:41.3]} 24. Rdd1 {[%clk 0:02:36]} 24... Ke6 {[%clk 0:00:41]} 25. Bb6
{[%clk 0:02:35.1]} 25... Rdb8 {[%clk 0:00:33]} 26. Bxa5 {[%clk 0:02:29.5]} 26...
Ra6 {[%clk 0:00:33.4]} 27. Bc7 {[%clk 0:02:17.1]} 27... Rxa1 {[%clk 0:00:26.7]}
28. Rxd6+ {[%clk 0:02:17.5]} 28... Ke7 {[%clk 0:00:17.4]} 29. Bxb8 {[%clk
0:02:19.4]} 29... Ra8 {[%clk 0:00:16.6]} 30. Bc7 {[%clk 0:02:15.6]} 30... Rc8
{[%clk 0:00:17.2]} 31. Rxc6 {[%clk 0:02:15.3]} 31... Kd7 {[%clk 0:00:18.5]} 32.
Rc5 {[%clk 0:02:16.1]} 32... Rxc7 {[%clk 0:00:20]} 33. Rxc7+ {[%clk 0:02:17.1]}
33... Kxc7 {[%clk 0:00:21.9]} 34. Kd3 {[%clk 0:02:17.9]} 34... Kc6 {[%clk
0:00:23.8]} 35. b4 {[%clk 0:02:18.8]} 35... g6 {[%clk 0:00:24.9]} 36. b3 {[%clk
0:02:19.9]} 36... h5 {[%clk 0:00:23.8]} 37. gxh5 {[%clk 0:02:20.2]} 37... gxh5
{[%clk 0:00:25.7]} 38. c4 {[%clk 0:02:21.5]} 38... f6 {[%clk 0:00:26.4]} 39. Ke3
{[%clk 0:02:22]} 39... h4 {[%clk 0:00:26.7]} 40. Kf2 {[%clk 0:02:22.4]} 40...
Kd6 {[%clk 0:00:28.2]} 41. g3 {[%clk 0:02:23]} 41... hxg3+ {[%clk 0:00:29.1]}
42. Kxg3 {[%clk 0:02:24.9]} 42... Ke6 {[%clk 0:00:30.4]} 43. Kg4 {[%clk
0:02:26]} 43... Ke7 {[%clk 0:00:30.5]} 44. Kf5 {[%clk 0:02:26.5]} 44... bxc4
{[%clk 0:00:31.8]} 45. bxc4 {[%clk 0:02:26.5]} 1-0

[Event "*** Titled Tuesday 3|2 Blitz"]
[Site "Chess.com"]
[Date "2016.09.06"]
[Round "6"]
[White "Mepetmepe"]
[Black "joppie2"]
[Result "1-0"]
[WhiteElo "2386"]
[BlackElo "2498"]
[TimeControl "180+2"]
[EndTime "12:14:15 PDT"]
[Termination "Mepetmepe won by resignation"]

1. d4 {[%clk 0:03:01.9]} 1... Nf6 {[%clk 0:03:01]} 2. c4 {[%clk 0:03:03.1]} 2...
g6 {[%clk 0:03:02.2]} 3. Nc3 {[%clk 0:03:04.3]} 3... Bg7 {[%clk 0:03:02.3]} 4.
e4 {[%clk 0:03:05.2]} 4... d6 {[%clk 0:03:00.3]} 5. Nf3 {[%clk 0:03:06.6]} 5...
O-O {[%clk 0:03:00.5]} 6. h3 {[%clk 0:03:08.2]} 6... c5 {[%clk 0:02:59.3]} 7. d5
{[%clk 0:03:08.4]} 7... e6 {[%clk 0:03:00.5]} 8. Bd3 {[%clk 0:03:07]} 8... exd5
{[%clk 0:03:02]} 9. exd5 {[%clk 0:03:08.9]} 9... Re8+ {[%clk 0:03:00.2]} 10. Be3
{[%clk 0:03:10.3]} 10... Bh6 {[%clk 0:02:59.9]} 11. O-O {[%clk 0:03:08.4]} 11...
Bxe3 {[%clk 0:03:01.6]} 12. fxe3 {[%clk 0:03:10.3]} 12... Nbd7 {[%clk
0:03:02.8]} 13. e4 {[%clk 0:03:02.2]} 13... Qe7 {[%clk 0:03:00.4]} 14. Qc2
{[%clk 0:02:57.3]} 14... Rf8 {[%clk 0:03:01.5]} 15. Rae1 {[%clk 0:02:57.8]}
15... Ne5 {[%clk 0:03:01.1]} 16. Nxe5 {[%clk 0:02:47.5]} 16... Qxe5 {[%clk
0:02:59.9]} 17. a3 {[%clk 0:02:49.4]} 17... Nd7 {[%clk 0:02:56.3]} 18. b4 {[%clk
0:02:40]} 18... b6 {[%clk 0:02:56.5]} 19. Nd1 {[%clk 0:02:34.6]} 19... Qe7
{[%clk 0:02:52.9]} 20. Ne3 {[%clk 0:02:34.4]} 20... Ne5 {[%clk 0:02:52]} 21. Be2
{[%clk 0:02:31.3]} 21... Bd7 {[%clk 0:02:49]} 22. Qd1 {[%clk 0:02:27.9]} 22...
a5 {[%clk 0:02:46.6]} 23. bxc5 {[%clk 0:02:09.6]} 23... bxc5 {[%clk 0:02:44.1]}
24. Bg4 {[%clk 0:02:10.8]} 24... Rab8 {[%clk 0:02:41.6]} 25. Bxd7 {[%clk
0:02:11.2]} 25... Qxd7 {[%clk 0:02:43.5]} 26. Rf6 {[%clk 0:02:01.6]} 26... Qe7
{[%clk 0:02:44.6]} 27. Ref1 {[%clk 0:02:00.1]} 27... Kg7 {[%clk 0:02:45.8]} 28.
Ng4 {[%clk 0:01:57.2]} 28... Nxg4 {[%clk 0:02:35.8]} 29. Qxg4 {[%clk 0:01:59.1]}
29... Qe5 {[%clk 0:02:36.2]} 30. Qd7 {[%clk 0:01:51.3]} 30... Qe8 {[%clk
0:02:07.9]} 31. Qxd6 {[%clk 0:01:52.6]} 31... Qxe4 {[%clk 0:02:08.9]} 32. Qxc5
{[%clk 0:01:51]} 32... Rb2 {[%clk 0:02:07]} 33. R6f2 {[%clk 0:01:44.2]} 33...
Rxf2 {[%clk 0:02:07.6]} 34. Qxf2 {[%clk 0:01:46.1]} 34... Qxc4 {[%clk
0:02:07.6]} 35. Qf6+ {[%clk 0:01:38.6]} 35... Kg8 {[%clk 0:02:08.5]} 36. d6
{[%clk 0:01:40.5]} 36... Qd5 {[%clk 0:02:07.8]} 37. Qe7 {[%clk 0:01:37.4]} 37...
Qc5+ {[%clk 0:01:55.7]} 38. Kh1 {[%clk 0:01:37.6]} 38... Qxa3 {[%clk 0:01:57.3]}
39. Re1 {[%clk 0:01:37.8]} 39... Kg7 {[%clk 0:01:42.9]} 40. Qe5+ {[%clk
0:01:38.5]} 40... f6 {[%clk 0:01:40.5]} 41. Qd5 {[%clk 0:01:22.6]} 41... Rf7
{[%clk 0:01:40.6]} 42. d7 {[%clk 0:01:20.7]} 42... Qc3 {[%clk 0:01:21.7]} 43.
Rd1 {[%clk 0:01:13.7]} 1-0

[Event "*** Titled Tuesday 3|2 Blitz"]
[Site "Chess.com"]
[Date "2016.09.06"]
[Round "6"]
[White "Journey_to_GrandMaster_YT"]
[Black "GianmarcoVaR"]
[Result "0-1"]
[WhiteElo "2344"]
[BlackElo "2402"]
[TimeControl "180+2"]
[EndTime "12:14:28 PDT"]
[Termination "GianmarcoVaR won by checkmate"]

1. d4 {[%clk 0:03:02]} 1... Nf6 {[%clk 0:02:55.9]} 2. Nf3 {[%clk 0:03:03.1]}
2... e6 {[%clk 0:02:54.5]} 3. e3 {[%clk 0:03:04.2]} 3... b6 {[%clk 0:02:55.9]}
4. Bd3 {[%clk 0:03:05.3]} 4... Bb7 {[%clk 0:02:56.7]} 5. Nbd2 {[%clk 0:03:06.9]}
5... d5 {[%clk 0:02:57.8]} 6. b3 {[%clk 0:03:04.1]} 6... Bd6 {[%clk 0:02:57.3]}
7. Bb2 {[%clk 0:03:04.7]} 7... O-O {[%clk 0:02:58.1]} 8. Ne5 {[%clk 0:03:05.4]}
8... c5 {[%clk 0:02:58.5]} 9. O-O {[%clk 0:03:05.4]} 9... Nc6 {[%clk 0:02:59.7]}
10. a3 {[%clk 0:02:58.1]} 10... Qc7 {[%clk 0:02:46.7]} 11. Ndf3 {[%clk
0:02:53.4]} 11... Ne4 {[%clk 0:02:47.1]} 12. Nxc6 {[%clk 0:02:53]} 12... Bxc6
{[%clk 0:02:47.7]} 13. Ne5 {[%clk 0:02:53.9]} 13... Bb7 {[%clk 0:02:25.2]} 14.
Qh5 {[%clk 0:02:50.6]} 14... f6 {[%clk 0:02:15.1]} 15. Ng4 {[%clk 0:02:19.1]}
15... c4 {[%clk 0:02:15.7]} 16. Be2 {[%clk 0:02:01.7]} 16... f5 {[%clk
0:02:03.6]} 17. Ne5 {[%clk 0:01:53.8]} 17... c3 {[%clk 0:02:02.1]} 18. Bc1
{[%clk 0:01:54.2]} 18... Bxe5 {[%clk 0:02:03.5]} 19. dxe5 {[%clk 0:01:52.9]}
19... Qxe5 {[%clk 0:01:51.7]} 20. Bd3 {[%clk 0:01:42.9]} 20... Rf6 {[%clk
0:01:35.7]} 21. h3 {[%clk 0:01:42.4]} 21... Raf8 {[%clk 0:01:26.6]} 22. a4
{[%clk 0:01:34.7]} 22... Rh6 {[%clk 0:01:24.9]} 23. Qf3 {[%clk 0:01:32.9]} 23...
Rff6 {[%clk 0:01:20.5]} 24. a5 {[%clk 0:01:32]} 24... b5 {[%clk 0:00:51.6]} 25.
a6 {[%clk 0:01:23]} 25... Bc6 {[%clk 0:00:50.7]} 26. Qf4 {[%clk 0:01:21.5]}
26... Qxf4 {[%clk 0:00:34.5]} 27. exf4 {[%clk 0:01:23.4]} 27... d4 {[%clk
0:00:35.8]} 28. Ba3 {[%clk 0:01:09.6]} 28... Nd2 {[%clk 0:00:27.1]} 29. Rfe1
{[%clk 0:01:02.4]} 29... Rfg6 {[%clk 0:00:27.6]} 30. Bf1 {[%clk 0:00:51.9]}
30... Nf3+ {[%clk 0:00:26.3]} 31. Kh1 {[%clk 0:00:51.9]} 31... Rxh3+ {[%clk
0:00:28.2]} 32. gxh3 {[%clk 0:00:51.9]} 32... Rg1# {[%clk 0:00:30.1]} 0-1

[Event "*** Titled Tuesday 3|2 Blitz"]
[Site "Chess.com"]
[Date "2016.09.06"]
[Round "6"]
[White "AnastasiaProtopopova"]
[Black "CraiggoryC"]
[Result "1-0"]
[WhiteElo "2086"]
[BlackElo "2016"]
[TimeControl "180+2"]
[EndTime "12:14:40 PDT"]
[Termination "AnastasiaProtopopova won on time"]

1. d4 {[%clk 0:03:01.9]} 1... Nf6 {[%clk 0:02:58.6]} 2. c4 {[%clk 0:03:01]} 2...
c6 {[%clk 0:03:00]} 3. Nf3 {[%clk 0:02:59.4]} 3... d5 {[%clk 0:03:01.5]} 4. e3
{[%clk 0:02:58.7]} 4... e6 {[%clk 0:03:02.6]} 5. b3 {[%clk 0:02:57.3]} 5... Nbd7
{[%clk 0:03:03.3]} 6. Nbd2 {[%clk 0:02:57.2]} 6... b6 {[%clk 0:03:00.5]} 7. Bb2
{[%clk 0:02:57.2]} 7... Bb7 {[%clk 0:03:01.6]} 8. Bd3 {[%clk 0:02:56.1]} 8...
Be7 {[%clk 0:03:02.2]} 9. O-O {[%clk 0:02:53.2]} 9... O-O {[%clk 0:03:03.7]} 10.
Ne5 {[%clk 0:02:53.5]} 10... Rc8 {[%clk 0:02:53]} 11. f4 {[%clk 0:02:52.7]}
11... c5 {[%clk 0:02:53.4]} 12. Qf3 {[%clk 0:02:37.1]} 12... Qc7 {[%clk
0:02:36.1]} 13. cxd5 {[%clk 0:02:36.4]} 13... exd5 {[%clk 0:02:22.4]} 14. Qh3
{[%clk 0:02:34.5]} 14... Nxe5 {[%clk 0:02:20.2]} 15. fxe5 {[%clk 0:02:31]} 15...
Ne4 {[%clk 0:02:21.3]} 16. Nxe4 {[%clk 0:02:30.5]} 16... dxe4 {[%clk 0:02:21.9]}
17. Bc4 {[%clk 0:02:30.3]} 17... Rcd8 {[%clk 0:00:59.5]} 18. Rad1 {[%clk
0:02:24.2]} 18... Bd5 {[%clk 0:00:57.4]} 19. Bxd5 {[%clk 0:02:20.5]} 19... Rxd5
{[%clk 0:00:58.4]} 20. Qg4 {[%clk 0:02:20.1]} 20... cxd4 {[%clk 0:00:48]} 21.
exd4 {[%clk 0:02:20]} 21... Qc2 {[%clk 0:00:48.4]} 22. Rf2 {[%clk 0:02:21]}
22... Qc6 {[%clk 0:00:26.3]} 23. Qxe4 {[%clk 0:02:21.3]} 23... Rfd8 {[%clk
0:00:21.9]} 24. Rdf1 {[%clk 0:02:10.1]} 24... Qe8 {[%clk 0:00:14.7]} 25. Rf3
{[%clk 0:01:57.6]} 25... f6 {[%clk 0:00:12.9]} 26. Rh3 {[%clk 0:01:57.3]} 26...
Qg6 {[%clk 0:00:09.6]} 27. Qf3 {[%clk 0:01:20.7]} 27... fxe5 {[%clk 0:00:09]}
28. Rg3 {[%clk 0:01:19.7]} 28... e4 {[%clk 0:00:05.2]} 29. Qf4 {[%clk
0:01:15.6]} 29... Qf6 {[%clk 0:00:04.3]} 30. Qxe4 {[%clk 0:01:14.6]} 1-0